fUSD/lending_fUSD_20250702
["ID","MTS","AMOUNT","RATE_DAILY","PERIOD"]
[368996934,1751428261282,-490.0,0.00017199,2]
[368996935,1751428261291,-490.0,0.00017199,2]
[368996936,1751428261301,-490.0,0.00017199,2]
[368996937,1751428261311,-490.0,0.00017199,2]
[368996938,1751428261321,-534.86198744,0.00017199,2]
[368996939,1751428261330,-490.0,0.00017199,2]
[368996940,1751428261340,-490.0,0.00017199,2]
[368996941,1751428261349,-490.0,0.00017199,2]
[368996942,1751428261359,-779.34,0.00017199,2]
[368996943,1751428261369,-493.65031105,0.00017199,2]
[368996944,1751428261379,-490.0,0.00017199,2]
[368996945,1751428261388,-490.0,0.00017199,2]
[368996946,1751428261398,-490.0,0.00017199,2]
[368996947,1751428261408,-490.0,0.00017199,2]
[368996948,1751428261417,-490.0,0.00017199,2]
[368996949,1751428261427,-1064.96,0.00017199,2]
[368996950,1751428261437,-490.0,0.00017199,2]
[368996951,1751428261447,-490.0,0.00017199,2]
[368996952,1751428261456,-151.0,0.00017199,2]
[368996953,1751428261466,-490.0,0.00017199,2]
[368996954,1751428261476,-1119.53,0.00017199,2]
[368996955,1751428261487,-490.0,0.00017199,2]
[368996957,1751428261501,-490.0,0.00017199,2]
[368996959,1751428261512,-490.0,0.00017199,2]
[368996971,1751428261736,-151.413463,0.00017199,2]
[368996972,1751428261747,-1405.09,0.00017199,2]
[368996973,1751428261757,-490.0,0.00017199,2]
[368996974,1751428261767,-490.0,0.00017199,2]
[368996975,1751428261777,-718.97,0.00017199,2]
[368996976,1751428261786,-490.0,0.00017199,2]
[368996977,1751428261796,-490.0,0.00017199,2]
[368996978,1751428261806,-490.0,0.00017199,2]
[368996979,1751428261815,-490.0,0.00017199,2]
[368996980,1751428261824,-490.0,0.00017199,2]
[368996981,1751428261834,-490.0,0.00017199,2]
[368996982,1751428261843,-490.0,0.00017199,2]
[368996983,1751428261852,-490.0,0.00017199,2]
[368996984,1751428261862,-430.45389679,0.00017199,2]
[368996985,1751428261872,-347.16113609,0.00017199,2]
[368996986,1751428261882,-492.17544196,0.00017199,2]
[368996987,1751428261891,-490.0,0.00017199,2]
[368996989,1751428261901,-490.0,0.00017199,2]
[368996991,1751428261910,-490.0,0.00017199,2]
[368996992,1751428261920,-490.0,0.00017199,2]
[368996993,1751428261929,-569.44,0.00017199,2]
[368996994,1751428261943,-490.0,0.00017199,2]
[368996995,1751428261953,-490.0,0.00017199,2]
[368996996,1751428261963,-490.0,0.00017199,2]
[368996998,1751428261973,-151.0,0.00017199,2]
[368997000,1751428261986,-932.02,0.00017199,2]
[368997002,1751428261995,-151.089484,0.00017199,2]
[368997004,1751428262005,-878.42998,0.00017199,2]
[368997005,1751428262015,-490.0,0.00017199,2]
[368997006,1751428262025,-878.42998,0.00017199,2]
[368997007,1751428262035,-490.0,0.00017199,2]
[368997008,1751428262045,-490.0,0.00017199,2]
[368997009,1751428262056,-1139.36,0.00017199,2]
[368997010,1751428262066,-490.0,0.00017199,2]
[368997011,1751428262076,-705.11,0.00017199,2]
[368997012,1751428262086,-151.0,0.00017199,2]
[368997013,1751428262096,-490.0,0.00017199,2]
[368997014,1751428262106,-490.0,0.00017199,2]
[368997015,1751428262115,-2568.87,0.00017199,2]
[368997016,1751428262125,-490.0,0.00017199,2]
[368997017,1751428262135,-490.0,0.00017199,2]
[368997018,1751428262146,-490.0,0.00017199,2]
[368997019,1751428262156,-490.0,0.00017199,2]
[368997020,1751428262166,-151.0,0.00017199,2]
[368997021,1751428262176,-490.0,0.00017199,2]
[368997022,1751428262186,-490.0,0.00017199,2]
[368997023,1751428262196,-490.0,0.00017199,2]
[368997024,1751428262206,-1116.39,0.00017199,2]
[368997025,1751428262216,-152.446064,0.00017199,2]
[368997026,1751428262226,-490.0,0.00017199,2]
[368997027,1751428262236,-227.351284,0.00017199,2]
[368997028,1751428262246,-490.0,0.00017199,2]
[368997029,1751428262256,-490.0,0.00017199,2]
[368997030,1751428262266,-490.0,0.00017199,2]
[368997031,1751428262277,-490.0,0.00017199,2]
[368997032,1751428262287,-272.66,0.00017199,2]
[368997033,1751428262297,-490.0,0.00017199,2]
[368997034,1751428262307,-490.0,0.00017199,2]
[368997035,1751428262317,-499.27496088,0.00017199,2]
[368997036,1751428262327,-490.0,0.00017199,2]
[368997037,1751428262336,-891.99,0.00017199,2]
[368997038,1751428262346,-933.02,0.00017199,2]
[368997039,1751428262356,-1009.43,0.00017199,2]
[368997040,1751428262366,-151.0,0.00017199,2]
[368997041,1751428262376,-151.0,0.00017199,2]
[368997042,1751428262386,-490.0,0.00017199,2]
[368997043,1751428262395,-567.8,0.00017199,2]
[368997044,1751428262406,-490.0,0.00017199,2]
[368997045,1751428262415,-276.18104665,0.00017199,2]
[368997046,1751428262424,-502.63,0.00017199,2]
[368997047,1751428262434,-490.0,0.00017199,2]
[368997048,1751428262444,-593.85,0.00017199,2]
[368997049,1751428262454,-458.23740552,0.00017199,2]
[368997050,1751428262464,-490.0,0.000172,2]
[368997051,1751428262473,-508.62362733,0.000172,2]
[368997052,1751428262483,-500.0,0.000172,2]
[368997053,1751428262495,-490.0,0.00017201,2]
[368997054,1751428262505,-491.73539674,0.00017201,2]
[368997055,1751428262514,-490.0,0.00017201,2]
[368997056,1751428262524,-493.98697728,0.00017201,2]
[368997057,1751428262535,-491.81670637,0.00017201,2]
[368997058,1751428262544,-491.30911102,0.00017201,2]
[368997059,1751428262553,-491.073694,0.00017201,2]
[368997060,1751428262563,-491.9310796,0.00017201,2]
[368997061,1751428262575,-491.08604919,0.00017201,2]
[368997062,1751428262585,-490.0,0.00017201,2]
[368997063,1751428262595,-490.0,0.00017201,2]
[368997064,1751428262605,-492.02014171,0.00017201,2]
[368997065,1751428262615,-151.0,0.00017247,2]
[368997066,1751428262625,-491.02731562,0.00017255,2]
[368997067,1751428262634,-490.0,0.00017255,2]
[368997068,1751428262644,-16.94447855,0.00017255,2]
[368997069,1751428262666,-490.0,0.00016708,2]
[368997070,1751428262675,-473.05552145,0.00017255,2]
[368997071,1751428262685,-490.0,0.00017255,2]
[368997072,1751428262695,-495.18829996,0.00017255,2]
[368997073,1751428262704,-490.0,0.00017255,2]
[368997074,1751428262713,-80.75617949,0.00017255,2]
[368997075,1751428457544,500.9,0.00027397,120]
[368997079,1751428660121,200.0,0.00016085,7]
[368997081,1751428970121,153.25,0.00013699,2]
[368997083,1751429120086,231.66089163,0.00013631,2]
[368997253,1751429431878,-1073.28084167,0.00015183,2]
[368997254,1751429431890,-494.33,0.00015183,2]
[368997255,1751429431900,-167.83,0.00015634,2]
[368997256,1751429431910,-151.95,0.00015902,2]
[368997257,1751429431919,-1073.28084167,0.00015907,2]
[368997258,1751429431929,-151.95,0.00015907,2]
[368997259,1751429431939,-151.95,0.00015912,2]
[368997260,1751429431948,-151.95,0.00015917,2]
[368997261,1751429431958,-1073.28084167,0.00015923,2]
[368997262,1751429431968,-151.95,0.00015923,2]
[368997263,1751429431977,-151.95,0.00015928,2]
[368997264,1751429431986,-151.95,0.00015933,2]
[368997265,1751429431996,-151.95,0.00015939,2]
[368997266,1751429432006,-151.708857,0.00015944,2]
[368997267,1751429432018,-0.241143,0.00015944,2]
[368997268,1751429432028,-151.95,0.00015949,2]
[368997269,1751429432037,-151.95,0.00015955,2]
[368997270,1751429432046,-151.95,0.0001596,2]
[368997271,1751429432055,-151.95,0.00015965,2]
[368997272,1751429432065,-151.95,0.0001597,2]
[368997273,1751429432074,-151.95,0.00015976,2]
[368997274,1751429432083,-151.95,0.00015981,2]
[368997275,1751429432092,-367.18,0.00015998,2]
[368997276,1751429432102,-640.59,0.00016031,2]
[368997277,1751429432111,-1200.0,0.00016056,2]
[368997278,1751429432120,-150.0,0.00016057,2]
[368997279,1751429432130,-300.0,0.00016057,2]
[368997280,1751429432140,-132.69923403,0.00016208,2]
[368997281,1751429432161,-417.30076597,0.00016208,2]
[368997282,1751429432172,-250.0,0.00016208,2]
[368997284,1751429432181,-1000.0,0.0001623,2]
[368997286,1751429432190,-171.74909656,0.00016375,2]
[368997287,1751429432206,-161.32090344,0.00016375,2]
[368997288,1751429432215,-930.2391,0.00016608,2]
[368997289,1751429432225,-1937.47461928,0.00016608,2]
[368997290,1751429432235,-501.37202808,0.00016681,2]
[368997291,1751429432247,-385.62797192,0.00016681,2]
[368997292,1751429432256,-465.06000184,0.00016681,2]
[368997293,1751429432268,-689.28099816,0.00016681,2]
[368997294,1751429432278,-90.77907725,0.00016681,2]
[368997295,1751429432294,-65.22092275,0.00016681,2]
[368997296,1751429432303,-753.0,0.00016681,2]
[368997297,1751429432312,-46.938398,0.00016698,2]
[368997298,1751429432324,-128.531602,0.00016698,2]
[368997299,1751429432333,-1796.19,0.00016698,2]
[368997301,1751429432342,-490.0,0.00016707,2]
[368997303,1751429432351,-501.92074948,0.00016707,2]
[368997305,1751429432361,-490.0,0.00016707,2]
[368997307,1751429432371,-490.0,0.00016707,2]
[368997309,1751429432380,-490.0,0.00016707,2]
[368997311,1751429432389,-490.0,0.00016707,2]
[368997313,1751429432399,-490.0,0.00016707,2]
[368997314,1751429432408,-490.0,0.00016707,2]
[368997315,1751429432417,-490.0,0.00016707,2]
[368997316,1751429432427,-490.0,0.00016707,2]
[368997317,1751429432436,-490.0,0.00016707,2]
[368997318,1751429432445,-490.0,0.00016707,2]
[368997319,1751429432454,-606.17,0.00016707,2]
[368997320,1751429432464,-490.0,0.00016707,2]
[368997321,1751429432473,-504.38,0.00016707,2]
[368997322,1751429432482,-490.0,0.00016707,2]
[368997323,1751429432491,-490.0,0.00016707,2]
[368997324,1751429432501,-490.0,0.00016707,2]
[368997325,1751429432514,-490.0,0.00016707,2]
[368997326,1751429432524,-490.0,0.00016707,2]
[368997327,1751429432534,-490.0,0.00016707,2]
[368997328,1751429432543,-490.0,0.00016707,2]
[368997330,1751429432552,-490.0,0.00016707,2]
[368997332,1751429432562,-490.0,0.00016707,2]
[368997333,1751429432571,-490.0,0.00016707,2]
[368997334,1751429432581,-490.0,0.00016707,2]
[368997335,1751429432590,-490.0,0.00016707,2]
[368997336,1751429432599,-738.2,0.00016707,2]
[368997337,1751429432608,-490.0,0.00016707,2]
[368997338,1751429432617,-490.0,0.00016707,2]
[368997339,1751429432627,-530.39792276,0.00016707,2]
[368997340,1751429432636,-490.0,0.00016707,2]
[368997341,1751429432646,-490.0,0.00016707,2]
[368997342,1751429432655,-490.0,0.00016707,2]
[368997343,1751429432665,-490.0,0.00016707,2]
[368997344,1751429432674,-490.0,0.00016707,2]
[368997345,1751429432685,-490.0,0.00016707,2]
[368997346,1751429432694,-490.0,0.00016707,2]
[368997347,1751429432704,-490.0,0.00016707,2]
[368997348,1751429432713,-490.0,0.00016707,2]
[368997349,1751429432723,-500.0,0.00016707,2]
[368997350,1751429432732,-490.0,0.00016707,2]
[368997351,1751429432741,-490.0,0.00016707,2]
[368997352,1751429432750,-500.49617996,0.00016707,2]
[368997353,1751429432760,-490.0,0.00016707,2]
[368997354,1751429432769,-183.030655,0.00016707,2]
[368997355,1751429432784,-1270.655494,0.00016707,2]
[368997356,1751429432793,-155.297371,0.00016707,2]
[368997357,1751429432803,-490.0,0.00016707,2]
[368997358,1751429432812,-1352.764463,0.00016707,2]
[368997359,1751429432822,-488.18924117,0.00016707,2]
[368997360,1751429432834,-863.99564383,0.00016707,2]
[368997361,1751429432844,-490.0,0.00016707,2]
[368997362,1751429432853,-145.21951281,0.00016707,2]
[368997363,1751429432864,-344.78048719,0.00016707,2]
[368997364,1751429432875,-490.0,0.00016707,2]
[368997365,1751429432885,-397.07083322,0.00016707,2]
[368997366,1751429432902,-92.92916678,0.00016707,2]
[368997367,1751429432911,-492.68126819,0.00016707,2]
[368997368,1751429432921,-248.54381813,0.00016707,2]
[368997369,1751429432934,-241.45618187,0.00016707,2]
[368997370,1751429432945,-490.0,0.00016707,2]
[368997371,1751429432955,-490.0,0.00016707,2]
[368997372,1751429432965,-490.0,0.00016707,2]
[368997373,1751429432974,-1000.0,0.00016707,2]
[368997374,1751429432984,-490.0,0.00016707,2]
[368997375,1751429432994,-490.0,0.00016707,2]
[368997376,1751429433003,-954.46,0.00016707,2]
[368997377,1751429433013,-490.0,0.00016707,2]
[368997378,1751429433024,-494.33996857,0.00016707,2]
[368997379,1751429433034,-179.56086996,0.00016707,2]
[368997381,1751429437826,-822.0,0.00016681,2]
[368997382,1751429437836,-310.43913004,0.00016707,2]
[368997383,1751429437846,-494.91170598,0.00016707,2]
[368997384,1751429437855,-490.0,0.00016707,2]
[368997385,1751429437865,-383.42725829,0.00016707,2]
[368997386,1751429437876,-106.57274171,0.00016707,2]
[368997387,1751429437888,-145.53775967,0.00016707,2]
[368997388,1751429437904,-344.46224033,0.00016707,2]
[368997389,1751429437914,-490.0,0.00016707,2]
[368997390,1751429437924,-490.0,0.00016707,2]
[368997391,1751429437935,-490.0,0.00016707,2]
[368997392,1751429437944,-490.0,0.00016707,2]
[368997393,1751429437954,-490.0,0.00016707,2]
[368997394,1751429437965,-490.0,0.00016707,2]
[368997395,1751429437976,-490.0,0.00016707,2]
[368997396,1751429437986,-1100.89,0.00016707,2]
[368997397,1751429437996,-490.0,0.00016707,2]
[368997398,1751429438006,-490.0,0.00016707,2]
[368997399,1751429438015,-490.0,0.00016707,2]
[368997400,1751429438025,-490.0,0.00016707,2]
[368997401,1751429438034,-490.0,0.00016707,2]
[368997402,1751429438044,-490.0,0.00016707,2]
[368997403,1751429438054,-37.58128019,0.00016707,2]
[368997404,1751429438067,-452.41871981,0.00016707,2]
[368997405,1751429438076,-490.0,0.00016707,2]
[368997406,1751429438086,-57.58128019,0.00016707,2]
[368997407,1751429438101,-312.15236487,0.00016707,2]
[368997607,1751429440288,-121.88665365,0.00016707,2]
[368997609,1751429440299,-490.0,0.00016707,2]
[368997611,1751429440309,-490.0,0.00016707,2]
[368997613,1751429440319,-490.0,0.00016707,2]
[368997615,1751429440328,-315.62867414,0.00016707,2]
[368997627,1751429440437,-690.91132586,0.00016707,2]
[368997629,1751429440447,-596.69,0.00016707,2]
[368997631,1751429440456,-494.48738029,0.00016707,2]
[368997633,1751429440466,-490.0,0.00016707,2]
[368997635,1751429440475,-490.0,0.00016707,2]
[368997637,1751429440484,-490.0,0.00016707,2]
[368997639,1751429440493,-490.0,0.00016707,2]
[368997641,1751429440503,-696.33,0.00016707,2]
[368997643,1751429440512,-490.0,0.00016707,2]
[368997645,1751429440521,-369.41795349,0.00016707,2]
[368997647,1751429440531,-490.0,0.00016707,2]
[368997649,1751429440540,-591.79,0.00016707,2]
[368997651,1751429440550,-490.0,0.00016707,2]
[368997653,1751429440559,-490.0,0.00016707,2]
[368997655,1751429440568,-490.0,0.00016707,2]
[368997657,1751429440577,-490.0,0.00016707,2]
[368997659,1751429440587,-490.0,0.00016707,2]
[368997661,1751429440596,-490.0,0.00016707,2]
[368997663,1751429440606,-490.0,0.00016707,2]
[368997665,1751429440615,-490.0,0.00016707,2]
[368997667,1751429440624,-2357.88,0.00016707,2]
[368997669,1751429440633,-490.0,0.00016707,2]
[368997671,1751429440643,-490.0,0.00016707,2]
[368997673,1751429440652,-1159.87,0.00016707,2]
[368997675,1751429440661,-490.0,0.00016707,2]
[368997677,1751429440671,-490.0,0.00016707,2]
[368997679,1751429440680,-490.0,0.00016707,2]
[368997681,1751429440689,-490.0,0.00016707,2]
[368997683,1751429440698,-1076.41,0.00016707,2]
[368997685,1751429440707,-490.0,0.00016707,2]
[368997687,1751429440716,-490.0,0.00016707,2]
[368997689,1751429440726,-490.0,0.00016707,2]
[368997691,1751429440735,-490.0,0.00016707,2]
[368997693,1751429440744,-490.0,0.00016707,2]
[368997695,1751429440753,-490.0,0.00016707,2]
[368997697,1751429440763,-764.21,0.00016707,2]
[368997699,1751429440772,-490.0,0.00016707,2]
[368997700,1751429440782,-586.43,0.00016707,2]
[368997703,1751429440791,-490.0,0.00016707,2]
[368997704,1751429440800,-490.0,0.00016707,2]
[368997706,1751429440809,-490.0,0.00016707,2]
[368997708,1751429440819,-1288.0,0.00016707,2]
[368997710,1751429440828,-2266.73,0.00016707,2]
[368997712,1751429440837,-490.0,0.00016707,2]
[368997714,1751429440847,-1245.53,0.00016707,2]
[368997716,1751429440856,-490.0,0.00016707,2]
[368997719,1751429440866,-490.0,0.00016707,2]
[368997721,1751429440876,-490.0,0.00016707,2]
[368997722,1751429440888,-659.05,0.00016707,2]
[368997724,1751429440899,-490.0,0.00016707,2]
[368997726,1751429440908,-490.0,0.00016707,2]
[368997728,1751429440917,-490.0,0.00016707,2]
[368997730,1751429440927,-490.0,0.00016707,2]
[368997733,1751429440936,-490.0,0.00016707,2]
[368997735,1751429440949,-490.0,0.00016707,2]
[368997737,1751429440960,-1474.82,0.00016707,2]
[368997739,1751429440969,-490.0,0.00016707,2]
[368997742,1751429440987,-490.0,0.00016707,2]
[368997744,1751429440998,-545.44,0.00016707,2]
[368997746,1751429441007,-490.0,0.00016707,2]
[368997748,1751429441017,-490.0,0.00016707,2]
[368997750,1751429441026,-1263.28,0.00016707,2]
[368997752,1751429441035,-490.0,0.00016707,2]
[368997754,1751429441044,-636.59,0.00016707,2]
[368997756,1751429441054,-490.0,0.00016707,2]
[368997758,1751429441063,-515.51,0.00016707,2]
[368997760,1751429441073,-490.0,0.00016707,2]
[368997762,1751429441083,-490.0,0.00016707,2]
[368997764,1751429441092,-525.71,0.00016707,2]
[368997765,1751429441101,-521.99,0.00016707,2]
[368997766,1751429441111,-385.35974429,0.00016707,2]
[368997767,1751429441119,-490.0,0.00016707,2]
[368997768,1751429441128,-490.0,0.00016707,2]
[368997769,1751429441138,-901.16,0.00016707,2]
[368997770,1751429441147,-490.0,0.00016707,2]
[368997771,1751429441156,-854.36,0.00016707,2]
[368997772,1751429441165,-490.0,0.00016707,2]
[368997773,1751429441175,-162.67617965,0.00016707,2]
[368997774,1751429441184,-490.0,0.00016707,2]
[368997775,1751429441193,-639.0,0.00016707,2]
[368997777,1751429441202,-490.0,0.00016707,2]
[368997779,1751429441211,-976.46,0.00016707,2]
[368997781,1751429441221,-490.0,0.00016707,2]
[368997783,1751429441230,-1942.39,0.00016707,2]
[368997785,1751429441239,-490.0,0.00016707,2]
[368997787,1751429441249,-490.0,0.00016707,2]
[368997789,1751429441258,-490.0,0.00016707,2]
[368997791,1751429441268,-490.0,0.00016707,2]
[368997793,1751429441278,-526.74,0.00016707,2]
[368997795,1751429441287,-160.17,0.00016707,2]
[368997797,1751429441297,-711.03,0.00016707,2]
[368997799,1751429441306,-646.35,0.00016707,2]
[368997801,1751429441316,-490.0,0.00016707,2]
[368997803,1751429441325,-490.0,0.00016707,2]
[368997805,1751429441334,-2183.11,0.00016707,2]
[368997808,1751429441343,-490.0,0.00016707,2]
[368997809,1751429441353,-490.0,0.00016707,2]
[368997812,1751429441364,-490.0,0.00016707,2]
[368997813,1751429441373,-490.0,0.00016707,2]
[368997815,1751429441382,-490.0,0.00016707,2]
[368997817,1751429441392,-490.0,0.00016707,2]
[368997819,1751429441402,-595.2384746,0.00016707,2]
[368997821,1751429441411,-490.0,0.00016707,2]
[368997823,1751429441421,-2044.65,0.00016707,2]
[368997825,1751429441431,-1233.43,0.00016707,2]
[368997827,1751429441441,-500.0,0.00016707,2]
[368997829,1751429441451,-500.0,0.00016707,2]
[368997832,1751429441460,-490.0,0.00016707,2]
[368997834,1751429441469,-490.0,0.00016707,2]
[368997836,1751429441479,-976.21,0.00016707,2]
[368997838,1751429441488,-510.0,0.00016707,2]
[368997840,1751429441497,-490.0,0.00016707,2]
[368997841,1751429441507,-490.0,0.00016707,2]
[368997843,1751429441516,-596.29,0.00016707,2]
[368997845,1751429441526,-970.57,0.00016707,2]
[368997848,1751429441536,-490.0,0.00016707,2]
[368997850,1751429441546,-819.21,0.00016707,2]
[368997852,1751429441556,-490.0,0.00016707,2]
[368997854,1751429441566,-925.31,0.00016707,2]
[368997856,1751429441575,-490.0,0.00016707,2]
[368997857,1751429441584,-602.82,0.00016707,2]
[368997859,1751429441594,-490.0,0.00016707,2]
[368997862,1751429441603,-500.0,0.00016707,2]
[368997863,1751429441612,-490.0,0.00016707,2]
[368997866,1751429441622,-490.0,0.00016707,2]
[368997867,1751429441631,-2330.76,0.00016707,2]
[368997869,1751429441640,-503.13,0.00016707,2]
[368997871,1751429441650,-490.0,0.00016707,2]
[368997873,1751429441659,-490.0,0.00016707,2]
[368997875,1751429441668,-900.84,0.00016707,2]
[368997877,1751429441677,-490.0,0.00016707,2]
[368997879,1751429441686,-490.0,0.00016707,2]
[368997881,1751429441695,-490.0,0.00016707,2]
[368997883,1751429441704,-490.0,0.00016707,2]
[368997885,1751429441713,-490.0,0.00016707,2]
[368997887,1751429441723,-490.0,0.00016707,2]
[368997889,1751429441732,-490.0,0.00016707,2]
[368997891,1751429441741,-490.0,0.00016707,2]
[368997893,1751429441750,-490.0,0.00016707,2]
[368997895,1751429441759,-490.0,0.00016707,2]
[368997897,1751429441768,-1026.23,0.00016707,2]
[368997899,1751429441778,-490.0,0.00016708,2]
[368997901,1751429441787,-493.10351333,0.00016708,2]
[368997903,1751429441796,-490.0,0.00016708,2]
[368997905,1751429441805,-491.84317948,0.00016708,2]
[368997907,1751429441815,-490.0,0.00016708,2]
[368997909,1751429441824,-490.0,0.00016708,2]
[368997911,1751429441833,-490.0,0.00016708,2]
[368997913,1751429441842,-493.71418108,0.00016708,2]
[368997915,1751429441851,-494.45975285,0.00016708,2]
[368997917,1751429441860,-490.0,0.00016708,2]
[368997919,1751429441870,-490.0,0.00016708,2]
[368997921,1751429441879,-490.0,0.00016708,2]
[368997923,1751429441892,-490.0,0.00016708,2]
[368997925,1751429441902,-490.0,0.00016708,2]
[368997927,1751429441911,-490.0,0.00016708,2]
[368997929,1751429441920,-172.19610685,0.00016708,2]
[368997931,1751429441930,-490.0,0.00016708,2]
[368997933,1751429441939,-490.0,0.00016708,2]
[368997934,1751429441948,-490.0,0.00016708,2]
[368997936,1751429441959,-490.0,0.00016708,2]
[368997938,1751429441969,-498.67334496,0.00016708,2]
[368997940,1751429441978,-506.74343317,0.00016708,2]
[368997942,1751429441987,-560.09,0.00016708,2]
[368997944,1751429441997,-490.0,0.00016708,2]
[368997946,1751429442006,-490.0,0.00016708,2]
[368997948,1751429442015,-816.08,0.00016708,2]
[368997950,1751429442024,-490.0,0.00016708,2]
[368997952,1751429442034,-490.0,0.00016708,2]
[368997954,1751429442043,-490.0,0.00016708,2]
[368997956,1751429442052,-495.61839676,0.00016708,2]
[368997958,1751429442062,-513.25024273,0.00016708,2]
[368997960,1751429442071,-490.0,0.00016708,2]
[368997962,1751429442080,-492.56898153,0.00016708,2]
[368997964,1751429442090,-490.0,0.00016708,2]
[368997966,1751429442099,-490.0,0.00016708,2]
[368997968,1751429442108,-490.0,0.00016708,2]
[368997970,1751429442118,-353.52108618,0.00016708,2]
[368997972,1751429442127,-490.0,0.00016708,2]
[368997975,1751429442137,-491.99058753,0.00016708,2]
[368997977,1751429442147,-490.0,0.00016708,2]
[368997979,1751429442156,-490.0,0.00016708,2]
[368997981,1751429442165,-490.0,0.00016708,2]
[368997983,1751429442175,-490.0,0.00016708,2]
[368997985,1751429442184,-490.0,0.00016708,2]
[368997987,1751429442193,-490.0,0.00016708,2]
[368997989,1751429442203,-495.13017273,0.00016708,2]
[368997990,1751429442213,-490.0,0.00016708,2]
[368997993,1751429442227,-623.85502715,0.00016708,2]
[368997995,1751429442236,-490.0,0.00016708,2]
[368997997,1751429442245,-498.54785476,0.00016708,2]
[368997999,1751429442255,-490.0,0.00016708,2]
[368998001,1751429442264,-490.0,0.00016708,2]
[368998003,1751429442274,-490.0,0.00016708,2]
[368998005,1751429442283,-493.02476972,0.00016708,2]
[368998037,1751429442570,-490.0,0.00016708,2]
[368998039,1751429442580,-490.0,0.00016708,2]
[368998041,1751429442589,-490.0,0.00016708,2]
[368998043,1751429442598,-492.70777044,0.00016708,2]
[368998045,1751429442607,-490.0,0.00016708,2]
[368998047,1751429442616,-497.49836018,0.00016708,2]
[368998049,1751429442625,-490.0,0.00016708,2]
[368998051,1751429442634,-445.88893196,0.00016708,2]
[368998053,1751429442643,-557.31225825,0.00016708,2]
[368998054,1751429442653,-490.0,0.00016708,2]
[368998057,1751429442663,-490.0,0.00016708,2]
[368998059,1751429442672,-490.0,0.00016708,2]
[368998061,1751429442681,-490.0,0.00016708,2]
[368998063,1751429442690,-490.0,0.00016708,2]
[368998064,1751429442699,-490.0,0.00016708,2]
[368998067,1751429442710,-490.0,0.00016708,2]
[368998068,1751429442720,-490.0,0.00016708,2]
[368998070,1751429442729,-490.0,0.00016708,2]
[368998072,1751429442738,-490.0,0.00016708,2]
[368998074,1751429442747,-550.76546928,0.00016708,2]
[368998076,1751429442756,-490.0,0.00016708,2]
[368998078,1751429442766,-490.0,0.00016708,2]
[368998080,1751429442775,-490.0,0.00016708,2]
[368998083,1751429442784,-490.0,0.00016708,2]
[368998085,1751429442794,-490.0,0.00016708,2]
[368998087,1751429442803,-490.0,0.00016708,2]
[368998089,1751429442813,-490.0,0.00016708,2]
[368998091,1751429442822,-216.98732276,0.00016708,2]
[368998093,1751429442832,-490.0,0.00016708,2]
[368998095,1751429442841,-490.0,0.00016708,2]
[368998097,1751429442850,-490.0,0.00016708,2]